Workbook

Sheet KAB
C2: JUMLAH PENDUDUK KABUPATEN BENGKULU TENGAH
C3: SEMESTER I TAHUN 2025
C6: KABUPATEN | E6: : BENGKULU TENGAH | F6: 17.09
C7: NO | D7: KODE WILAYAH | E7: KECAMATAN | F7: JUMLAH PENDUDUK
F8: LAKI-LAKI | G8: PEREMPUAN | H8: JUMLAH
C9: 1 | D9: 17.09.01 | E9: KARANG TINGGI | F9: 6,889 | G9: 6,741 | H9: =F9+G9 -> 13,630
C10: 2 | D10: 17.09.02 | E10: TALANG EMPAT | F10: 6,919 | G10: 6,597 | H10: =F10+G10 -> 13,516
C11: 3 | D11: 17.09.03 | E11: PONDOK KELAPA | F11: 16,869 | G11: 16,257 | H11: 33,126
C12: 4 | D12: 17.09.04 | E12: PEMATANG TIGA | F12: 4,211 | G12: 3,992 | H12: 8,203
C13: 5 | D13: 17.09.05 | E13: PAGAR JATI | F13: 3,818 | G13: 3,701 | H13: 7,519
C14: 6 | D14: 17.09.06 | E14: TABA PENANJUNG | F14: 6,467 | G14: 6,077 | H14: 12,544
C15: 7 | D15: 17.09.07 | E15: MERIGI KELINDANG | F15: 3,993 | G15: 3,767 | H15: 7,760
C16: 8 | D16: 17.09.08 | E16: MERIGI SAKTI | F16: 3,462 | G16: 3,368 | H16: 6,830
C17: 9 | D17: 17.09.09 | E17: PONDOK KUBANG | F17: 5,781 | G17: 5,489 | H17: 11,270
C18: 10 | D18: 17.09.10 | E18: BANG HAJI | F18: 3,751 | G18: 3,489 | H18: 7,240
C19: 11 | D19: 17.09.11 | E19: SEMIDANG LAGAN | F19: 3,128 | G19: 2,903 | H19: 6,031
C20: TOTAL | F20: =SUM(F9:F19) -> 65,288 | G20: =SUM(G9:G19) -> 62,381 | H20: =SUM(H9:H19) -> 127,669
G25: KEPALA DINAS KEPENDUDUKAN
G26: DAN PENCATATAN SIPIL
K29: .
G30: AYATUL MUKHTADIN, S.H.
G31: NIP. 19680818 198812 1 002

Sheet DIAGRAM

Sheet KECAMATAN.
C2: REKAPITULASI JUMLAH PENDUDUK
C3: KABUPATEN BENGKULU TENGAH PERKECAMATAN
C4: SEMESTER I TAHUN 2025
C6: KECAMATAN | E6: : KARANG TINGGI | F6: 17.09.01
C7: NO | D7: KODE WILAYAH | E7: DESA/KELURAHAN | F7: JUMLAH PENDUDUK
F8: LAKI-LAKI | G8: PEREMPUAN | H8: JUMLAH
C9: 1 | D9: 17.09.01.2001 | E9: TABA TERUNJAM | F9: 533 | G9: 558 | H9: =F9+G9 -> 1,091
C10: 2 | D10: 17.09.01.2002 | E10: TALANG EMPAT | F10: 637 | G10: 569 | H10: =F10+G10 -> 1,206
C11: 3 | D11: 17.09.01.2003 | E11: PADANG TAMBAK | F11: 454 | G11: 447 | H11: 901
C12: 4 | D12: 17.09.01.2004 | E12: DURIAN DEMANG | F12: 855 | G12: 856 | H12: 1,711
C13: 5 | D13: 17.09.01.2005 | E13: PELAJAU | F13: 294 | G13: 305 | H13: 599
C14: 6 | D14: 17.09.01.2007 | E14: DUSUN BARU II | F14: 615 | G14: 604 | H14: 1,219
C15: 7 | D15: 17.09.01.2008 | E15: PENANDING | F15: 600 | G15: 549 | H15: =F15+G15 -> 1,149
C16: 8 | D16: 17.09.01.2009 | E16: KARANG TINGGI | F16: 868 | G16: 902 | H16: 1,770
C17: 9 | D17: 17.09.01.2010 | E17: RENAH LEBAR | F17: 277 | G17: 266 | H17: 543
C18: 10 | D18: 17.09.01.2011 | E18: KANCING | F18: 312 | G18: 296 | H18: 608
C19: 11 | D19: 17.09.01.2012 | E19: UJUNG KARANG | F19: 766 | G19: 738 | H19: 1,504
C20: 12 | D20: 17.09.01.2013 | E20: TABA MUTUNG | F20: 236 | G20: 240 | H20: 476
C21: 13 | D21: 17.09.01.2015 | E21: RENAH SEMANEK | F21: 442 | G21: 411 | H21: 853
C22: TOTAL | F22: =SUM(F9:F21) -> 6,889 | G22: =SUM(G9:G21) -> 6,741 | H22: =SUM(H9:H21) -> 13,630
C24: KECAMATAN | E24: : TALANG EMPAT | F24: 17.09.02
C25: NO | D25: KODE WILAYAH | E25: DESA/KELURAHAN | F25: JUMLAH PENDUDUK
F26: LAKI-LAKI | G26: PEREMPUAN | H26: JUMLAH
C27: 1 | D27: 17.09.02.2001 | E27: AIR SEBAKUL | F27: 919 | G27: 880 | H27: =F27+G27 -> 1,799
C28: 2 | D28: 17.09.02.2004 | E28: TABA PASMAH | F28: 627 | G28: 599 | H28: =F28+G28 -> 1,226
C29: 3 | D29: 17.09.02.2005 | E29: KEMBANG SERI | F29: 1,803 | G29: 1,732 | H29: 3,535
C30: 4 | D30: 17.09.02.2006 | E30: TENGAH PADANG | F30: 755 | G30: 728 | H30: 1,483
C31: 5 | D31: 17.09.02.2007 | E31: JAYAKARTA | F31: 424 | G31: 407 | H31: 831
C32: 6 | D32: 17.09.02.2008 | E32: NAKAU | F32: 611 | G32: 611 | H32: 1,222
C33: 7 | D33: 17.09.02.2009 | E33: PULAU PANGGUNG | F33: 648 | G33: 633 | H33: 1,281
C34: 8 | D34: 17.09.02.2014 | E34: JUM'AT | F34: 267 | G34: 245 | H34: 512
C35: 9 | D35: 17.09.02.2015 | E35: PADANG ULAK TANJUNG | F35: 446 | G35: 379 | H35: 825
C36: 10 | D36: 17.09.02.2017 | E36: AIR PUTIH | F36: 419 | G36: 383 | H36: 802
C37: TOTAL | F37: =SUM(F27:F36) -> 6,919 | G37: =SUM(G27:G36) -> 6,597 | H37: =SUM(H27:H36) -> 13,516
C39: KECAMATAN | E39: : PONDOK KELAPA | F39: 17.09.03
C40: NO | D40: KODE WILAYAH | E40: DESA/KELURAHAN | F40: JUMLAH PENDUDUK
F41: LAKI-LAKI | G41: PEREMPUAN | H41: JUMLAH
C42: 1 | D42: 17.09.03.2009 | E42: TALANG PAUH | F42: 1,105 | G42: 1,122 | H42: =F42+G42 -> 2,227
C43: 2 | D43: 17.09.03.2010 | E43: SRIKATON | F43: 594 | G43: 575 | H43: =F43+G43 -> 1,169
C44: 3 | D44: 17.09.03.2011 | E44: PEKIK NYARING | F44: 2,304 | G44: 2,195 | H44: 4,499
C45: 4 | D45: 17.09.03.2012 | E45: PASAR PEDATI | F45: 2,944 | G45: 2,800 | H45: 5,744
C46: 5 | D46: 17.09.03.2013 | E46: SUNDA KELAPA | F46: 764 | G46: 747 | H46: 1,511
C47: 6 | D47: 17.09.03.2014 | E47: PONDOK KELAPA | F47: 1,902 | G47: 1,859 | H47: 3,761
C48: 7 | D48: 17.09.03.2015 | E48: PADANG BETUAH | F48: 779 | G48: 819 | H48: 1,598
C49: 8 | D49: 17.09.03.2016 | E49: SIDOREJO | F49: 916 | G49: 857 | H49: 1,773
C50: 9 | D50: 17.09.03.2017 | E50: SIDODADI | F50: 1,168 | G50: 1,119 | H50: 2,287
C51: 10 | D51: 17.09.03.2018 | E51: TALANG BOSENG | F51: 391 | G51: 373 | H51: 764
C52: 11 | D52: 17.09.03.2019 | E52: PAGAR DEWA | F52: 241 | G52: 229 | H52: 470
C53: 12 | D53: 17.09.03.2020 | E53: KEMBANG AYUN | F53: 397 | G53: 359 | H53: 756
C54: 13 | D54: 17.09.03.2021 | E54: PANCA MUKTI | F54: 733 | G54: 710 | H54: 1,443
C55: 14 | D55: 17.09.03.2022 | E55: SRI KUNCORO | F55: 1,005 | G55: 938 | H55: 1,943
C56: 15 | D56: 17.09.03.2023 | E56: BINTANG SELATAN | F56: 276 | G56: 277 | H56: 553
C57: 16 | D57: 17.09.03.2024 | E57: ABU SAKIM | F57: 540 | G57: 483 | H57: 1,023
C58: 17 | D58: 17.09.03.2025 | E58: HARAPAN | F58: 810 | G58: 795 | H58: 1,605
C59: TOTAL | F59: =SUM(F42:F58) -> 16,869 | G59: =SUM(G42:G58) -> 16,257 | H59: =SUM(H42:H58) -> 33,126
C61: KECAMATAN | E61: : PEMATANG TIGA | F61: 17.09.04
C62: NO | D62: KODE WILAYAH | E62: DESA/KELURAHAN | F62: JUMLAH PENDUDUK
F63: LAKI-LAKI | G63: PEREMPUAN | H63: JUMLAH
C64: 1 | D64: 17.09.04.2002 | E64: ATURAN MUMPO | F64: 339 | G64: 345 | H64: =F64+G64 -> 684
C65: 2 | D65: 17.09.04.2003 | E65: TALANG TENGAH II | F65: 331 | G65: 300 | H65: =F65+G65 -> 631
C66: 3 | D66: 17.09.04.2004 | E66: KOTA TITIK | F66: 203 | G66: 201 | H66: 404
C67: 4 | D67: 17.09.04.2007 | E67: SENABAH | F67: 230 | G67: 243 | H67: 473
C68: 5 | D68: 17.09.04.2015 | E68: AIR KOTOK | F68: 321 | G68: 264 | H68: 585
C69: 6 | D69: 17.09.04.2016 | E69: BATU BERIANG | F69: 409 | G69: 376 | H69: 785
C70: 7 | D70: 17.09.04.2017 | E70: PEMATANG TIGA | F70: 434 | G70: 389 | H70: 823
C71: 8 | D71: 17.09.04.2018 | E71: TIAMBANG | F71: 257 | G71: 269 | H71: 526
C72: 9 | D72: 17.09.04.2019 | E72: KEBUN LEBAR | F72: 331 | G72: 322 | H72: 653
C73: 10 | D73: 17.09.04.2020 | E73: TANJUNG KEPAHYANG | F73: 306 | G73: 284 | H73: 590
C74: 11 | D74: 17.09.04.2021 | E74: PEMATANG TIGA LAMA | F74: 310 | G74: 303 | H74: 613
C75: 12 | D75: 17.09.04.2022 | E75: ATURAN MUMPO II | F75: 423 | G75: 414 | H75: 837
C76: 13 | D76: 17.09.04.2023 | E76: GENTING DABUK | F76: 317 | G76: 282 | H76: 599
C77: TOTAL | F77: =SUM(F64:F76) -> 4,211 | G77: =SUM(G64:G76) -> 3,992 | H77: 8,203
C79: KECAMATAN | E79: : PAGAR JATI | F79: 17.09.05
C80: NO | D80: KODE WILAYAH | E80: DESA/KELURAHAN | F80: JUMLAH PENDUDUK
F81: LAKI-LAKI | G81: PEREMPUAN | H81: JUMLAH
C82: 1 | D82: 17.09.05.2006 | E82: TEMIANG | F82: 334 | G82: 322 | H82: =F82+G82 -> 656
C83: 2 | D83: 17.09.05.2008 | E83: TABA RENAH | F83: 205 | G83: 205 | H83: =F83+G83 -> 410
C84: 3 | D84: 17.09.05.2009 | E84: KERTA PATI | F84: 422 | G84: 426 | H84: 848
C85: 4 | D85: 17.09.05.2010 | E85: PAGAR JATI | F85: 284 | G85: 316 | H85: 600
C86: 5 | D86: 17.09.05.2012 | E86: KARANG ARE | F86: 193 | G86: 185 | H86: 378
C87: 6 | D87: 17.09.05.2013 | E87: DATAR PENOKAT | F87: 190 | G87: 186 | H87: 376
C88: 7 | D88: 17.09.05.2014 | E88: LAYANG LEKAT | F88: 209 | G88: 211 | H88: 420
C89: 8 | D89: 17.09.05.2015 | E89: TUMBUK | F89: 238 | G89: 213 | H89: 451
C90: 9 | D90: 17.09.05.2016 | E90: TALANG CURUP | F90: 136 | G90: 135 | H90: 271
C91: 10 | D91: 17.09.05.2017 | E91: RENA KANDIS | F91: 251 | G91: 229 | H91: 480
C92: 11 | D92: 17.09.05.2018 | E92: ARGA INDAH I | F92: 301 | G92: 294 | H92: 595
C93: 12 | D93: 17.09.05.2022 | E93: KEROYA | F93: 460 | G93: 448 | H93: 908
C94: 13 | D94: 17.09.05.2023 | E94: KERTAPATI MUDIK | F94: 451 | G94: 401 | H94: 852
C95: 14 | D95: 17.09.05.2024 | E95: RENA JAYA | F95: 144 | G95: 130 | H95: 274
C96: TOTAL | F96: =SUM(F82:F95) -> 3,818 | G96: =SUM(G82:G95) -> 3,701 | H96: 7,519
C98: KECAMATAN | E98: : TABA PENANJUNG | F98: 17.09.06
C99: NO | D99: KODE WILAYAH | E99: DESA/KELURAHAN | F99: JUMLAH PENDUDUK
F100: LAKI-LAKI | G100: PEREMPUAN | H100: JUMLAH
C101: 1 | D101: 17.09.06.1007 | E101: TABA PENANJUNG | F101: 554 | G101: 562 | H101: =F101+G101 -> 1,116
C102: 2 | D102: 17.09.06.2002 | E102: TANJUNG RAMAN | F102: 306 | G102: 270 | H102: =F102+G102 -> 576
C103: 3 | D103: 17.09.06.2003 | E103: SUKARAMI | F103: 1,070 | G103: 1,038 | H103: 2,108
C104: 4 | D104: 17.09.06.2004 | E104: KARANG TENGAH | F104: 349 | G104: 277 | H104: 626
C105: 5 | D105: 17.09.06.2005 | E105: LUBUK SINI | F105: 681 | G105: 659 | H105: 1,340
C106: 6 | D106: 17.09.06.2008 | E106: TABA TERET | F106: 400 | G106: 421 | H106: 821
C107: 7 | D107: 17.09.06.2009 | E107: SURAU | F107: 351 | G107: 320 | H107: 671
C108: 8 | D108: 17.09.06.2010 | E108: RINDU HATI | F108: 619 | G108: 543 | H108: 1,162
C109: 9 | D109: 17.09.06.2011 | E109: TANJUNG HERAN | F109: 312 | G109: 288 | H109: 600
C110: 10 | D110: 17.09.06.2012 | E110: DATAR LEBAR | F110: 295 | G110: 252 | H110: 547
C111: 11 | D111: 17.09.06.2013 | E111: PENUM | F111: 280 | G111: 278 | H111: 558
C112: 12 | D112: 17.09.06.2023 | E112: BAJAK I | F112: 932 | G112: 881 | H112: 1,813
C113: 13 | D113: 17.09.06.2024 | E113: TABA BARU | F113: 318 | G113: 288 | H113: 606
C114: TOTAL | F114: =SUM(F101:F113) -> 6,467 | G114: =SUM(G101:G113) -> 6,077 | H114: =SUM(H101:H113) -> 12,544
C118: KECAMATAN | E118: : MERIGI KELINDANG | F118: 17.09.07
C119: NO | D119: KODE WILAYAH | E119: DESA/KELURAHAN | F119: JUMLAH PENDUDUK
F120: LAKI-LAKI | G120: PEREMPUAN | H120: JUMLAH
C121: 1 | D121: 17.09.07.2001 | E121: JAMBU | F121: 655 | G121: 583 | H121: =F121+G121 -> 1,238
C122: 2 | D122: 17.09.07.2002 | E122: PENEMBANG | F122: 384 | G122: 390 | H122: =F122+G122 -> 774
C123: 3 | D123: 17.09.07.2003 | E123: TALANG AMBUNG | F123: 82 | G123: 83 | H123: 165
C124: 4 | D124: 17.09.07.2004 | E124: TABA DURIAN SEBAKUL | F124: 244 | G124: 239 | H124: 483
C125: 5 | D125: 17.09.07.2005 | E125: LUBUK UNEN | F125: 461 | G125: 464 | H125: 925
C126: 6 | D126: 17.09.07.2006 | E126: PUNGGUK KETUPAK | F126: 233 | G126: 198 | H126: 431
C127: 7 | D127: 17.09.07.2007 | E127: PUNGGUK BERINGIN | F127: 229 | G127: 219 | H127: 448
C128: 8 | D128: 17.09.07.2008 | E128: ULAK LEBAR | F128: 232 | G128: 219 | H128: 451
C129: 9 | D129: 17.09.07.2009 | E129: KELINDANG | F129: 236 | G129: 247 | H129: 483
C130: 10 | D130: 17.09.07.2010 | E130: BAJAK II | F130: 373 | G130: 321 | H130: 694
C131: 11 | D131: 17.09.07.2011 | E131: LUBUK UNEN BARU | F131: 410 | G131: 384 | H131: 794
C132: 12 | D132: 17.09.07.2012 | E132: PADANG KEDEPER | F132: 159 | G132: 153 | H132: 312
C133: 13 | D133: 17.09.07.2013 | E133: KELINDANG ATAS | F133: 295 | G133: 267 | H133: 562
C134: TOTAL | F134: =SUM(F121:F133) -> 3,993 | G134: =SUM(G121:G133) -> 3,767 | H134: =SUM(H121:H133) -> 7,760
C136: KECAMATAN | E136: : MERIGI SAKTI | F136: 17.09.08
C137: NO | D137: KODE WILAYAH | E137: DESA/KELURAHAN | F137: JUMLAH PENDUDUK
F138: LAKI-LAKI | G138: PEREMPUAN | H138: JUMLAH
C139: 1 | D139: 17.09.08.2001 | E139: KOMERING | F139: 360 | G139: 349 | H139: =F139+G139 -> 709
C140: 2 | D140: 17.09.08.2002 | E140: BAJAK TIGA | F140: 187 | G140: 175 | H140: =F140+G140 -> 362
C141: 3 | D141: 17.09.08.2003 | E141: RAJAK BESI | F141: 311 | G141: 294 | H141: 605
C142: 4 | D142: 17.09.08.2004 | E142: PUNJUNG | F142: 293 | G142: 270 | H142: 563
C143: 5 | D143: 17.09.08.2005 | E143: SUSUP | F143: 295 | G143: 281 | H143: 576
C144: 6 | D144: 17.09.08.2006 | E144: ARGA INDAH II | F144: 469 | G144: 453 | H144: 922
C145: 7 | D145: 17.09.08.2007 | E145: CURUP | F145: 199 | G145: 214 | H145: 413
C146: 8 | D146: 17.09.08.2008 | E146: KARANG PANGGUNG | F146: 92 | G146: 86 | H146: 178
C147: 9 | D147: 17.09.08.2009 | E147: LUBUK PENDAM | F147: 201 | G147: 196 | H147: 397
C148: 10 | D148: 17.09.08.2010 | E148: LUBUK PUAR | F148: 135 | G148: 123 | H148: 258
C149: 11 | D149: 17.09.08.2011 | E149: DURIAN LEBAR | F149: 233 | G149: 238 | H149: 471
C150: 12 | D150: 17.09.08.2012 | E150: PAGAR AGUNG | F150: 151 | G150: 159 | H150: 310
C151: 13 | D151: 17.09.08.2013 | E151: PUNGGUK JAYA | F151: 122 | G151: 130 | H151: 252
C152: 14 | D152: 17.09.08.2014 | E152: TABA GEMANTUNG | F152: 200 | G152: 191 | H152: 391
C153: 15 | D153: 17.09.08.2015 | E153: PAGAR BESI | F153: 214 | G153: 209 | H153: 423
C154: TOTAL | F154: =SUM(F139:F153) -> 3,462 | G154: =SUM(G139:G153) -> 3,368 | H154: 6,830
C156: KECAMATAN | E156: : PONDOK KUBANG | F156: 17.09.09
C157: NO | D157: KODE WILAYAH | E157: DESA/KELURAHAN | F157: JUMLAH PENDUDUK
F158: LAKI-LAKI | G158: PEREMPUAN | H158: JUMLAH
C159: 1 | D159: 17.09.09.2001 | E159: PONDOK KUBANG | F159: 519 | G159: 519 | H159: =F159+G159 -> 1,038
C160: 2 | D160: 17.09.09.2002 | E160: BATU RAJA | F160: 414 | G160: 396 | H160: =F160+G160 -> 810
C161: 3 | D161: 17.09.09.2003 | E161: DUSUN ANYAR | F161: 110 | G161: 99 | H161: 209
C162: 4 | D162: 17.09.09.2004 | E162: TANJUNG DALAM | F162: 155 | G162: 135 | H162: 290
C163: 5 | D163: 17.09.09.2005 | E163: TALANG TENGAH I | F163: 285 | G163: 274 | H163: 559
C164: 6 | D164: 17.09.09.2006 | E164: PAKU HAJI | F164: 305 | G164: 275 | H164: 580
C165: 7 | D165: 17.09.09.2007 | E165: TANJUNG TERDANA | F165: 648 | G165: 671 | H165: 1,319
C166: 8 | D166: 17.09.09.2008 | E166: LINGGAR GALING | F166: 489 | G166: 452 | H166: 941
C167: 9 | D167: 17.09.09.2009 | E167: DUSUN BARU I | F167: 547 | G167: 490 | H167: 1,037
C168: 10 | D168: 17.09.09.2010 | E168: HARAPAN MAKMUR | F168: 625 | G168: 554 | H168: 1,179
C169: 11 | D169: 17.09.09.2011 | E169: MARGO MULYO | F169: 738 | G169: 696 | H169: 1,434
C170: 12 | D170: 17.09.09.2012 | E170: TABA JAMBU | F170: 946 | G170: 928 | H170: 1,874
C171: TOTAL | F171: =SUM(F159:F170) -> 5,781 | G171: =SUM(G159:G170) -> 5,489 | H171: 11,270
C175: KECAMATAN | E175: : BANG HAJI | F175: 17.09.10
C176: NO | D176: KODE WILAYAH | E176: DESA/KELURAHAN | F176: JUMLAH PENDUDUK
F177: LAKI-LAKI | G177: PEREMPUAN | H177: JUMLAH
C178: 1 | D178: 17.09.10.2001 | E178: SEKAYUN | F178: 387 | G178: 375 | H178: =F178+G178 -> 762
C179: 2 | D179: 17.09.10.2002 | E179: SEKAYUN MUDIK | F179: 480 | G179: 491 | H179: =F179+G179 -> 971
C180: 3 | D180: 17.09.10.2003 | E180: SEKAYUN HILIR | F180: 240 | G180: 208 | H180: 448
C181: 4 | D181: 17.09.10.2004 | E181: TALANG DONOK | F181: 399 | G181: 371 | H181: 770
C182: 5 | D182: 17.09.10.2005 | E182: TABA TENGAH | F182: 211 | G182: 190 | H182: 401
C183: 6 | D183: 17.09.10.2006 | E183: PADANG BERUNAI | F183: 357 | G183: 305 | H183: 662
C184: 7 | D184: 17.09.10.2007 | E184: LUBUK LANGKAP | F184: 320 | G184: 283 | H184: 603
C185: 8 | D185: 17.09.10.2008 | E185: AIR NAPAL | F185: 410 | G185: 399 | H185: 809
C186: 9 | D186: 17.09.10.2009 | E186: GENTING | F186: 193 | G186: 174 | H186: 367
C187: 10 | D187: 17.09.10.2010 | E187: TALANG PANJANG | F187: 230 | G187: 199 | H187: 429
C188: 11 | D188: 17.09.10.2011 | E188: BANG HAJI | F188: 361 | G188: 352 | H188: 713
C189: 12 | D189: 17.09.10.2012 | E189: SUNGKAI BERAYUN | F189: 163 | G189: 142 | H189: 305
C190: TOTAL | F190: =SUM(F178:F189) -> 3,751 | G190: =SUM(G178:G189) -> 3,489 | H190: 7,240
C193: KECAMATAN | E193: : SEMIDANG LAGAN | F193: 17.09.11
C194: NO | D194: KODE WILAYAH | E194: DESA/KELURAHAN | F194: JUMLAH PENDUDUK
F195: LAKI-LAKI | G195: PEREMPUAN | H195: JUMLAH
C196: 1 | D196: 17.09.11.2001 | E196: PAGAR GUNUNG | F196: 98 | G196: 96 | H196: =F196+G196 -> 194
C197: 2 | D197: 17.09.11.2002 | E197: KARANG NANDING | F197: 235 | G197: 224 | H197: =F197+G197 -> 459
C198: 3 | D198: 17.09.11.2003 | E198: SEMIDANG | F198: 174 | G198: 160 | H198: 334
C199: 4 | D199: 17.09.11.2004 | E199: GAJAH MATI | F199: 355 | G199: 306 | H199: 661
C200: 5 | D200: 17.09.11.2005 | E200: PADANG SIRING | F200: 89 | G200: 90 | H200: 179
C201: 6 | D201: 17.09.11.2006 | E201: LAGAN BUNGIN | F201: 347 | G201: 315 | H201: 662
C202: 7 | D202: 17.09.11.2007 | E202: PAGAR JATI | F202: 281 | G202: 238 | H202: 519
C203: 8 | D203: 17.09.11.2008 | E203: TABA LAGAN | F203: 548 | G203: 533 | H203: 1,081
C204: 9 | D204: 17.09.11.2009 | E204: LAGAN | F204: 212 | G204: 208 | H204: 420
C205: 10 | D205: 17.09.11.2010 | E205: BUKIT | F205: 421 | G205: 402 | H205: 823
C206: 11 | D206: 17.09.11.2011 | E206: KOTA NIUR | F206: 368 | G206: 331 | H206: 699
C207: TOTAL | F207: =SUM(F196:F206) -> 3,128 | G207: =SUM(G196:G206) -> 2,903 | H207: =SUM(H196:H206) -> 6,031 | L207: =H207+H190+H171+H154+H134+H114+H96+H77+H59+H37+H22 -> 127,669
C208: Sumber : DKB SEMESTER I TAHUN 2025
G212: KEPALA DINAS KEPENDUDUKAN
G213: DAN PENCATATAN SIPIL
G217: AYATUL MUKHTADIN, S.H.
G218: NIP. 19680818 198812 1 002

Sheet PERBANDINGAN
C2: PERBANDINGAN DAN PERTAMBAHAN JUMLAH PENDUDUK KABUPATEN BENGKULU TENGAH
C5: NO | D5: KODE WILAYAH | E5: KECAMATAN | F5: JUMLAH PENDUDUK SEMESTER II TAHUN 2024 | I5: JUMLAH PENDUDUK SEMESTER I TAHUN 2025 | L5: PERTAMBAHAN PENDUDUK
F6: LAKI-LAKI | G6: PEREMPUAN | H6: JUMLAH | I6: LAKI-LAKI | J6: PEREMPUAN | K6: JUMLAH | L6: LAKI-LAKI | M6: PEREMPUAN | N6: JUMLAH | O6: PERSENTASE
C7: 1 | D7: 17.09.01 | E7: KARANG TINGGI | F7: 6,804 | G7: 6,632 | H7: =F7+G7 -> 13,436 | I7: 6,889 | J7: 6,741 | K7: =I7+J7 -> 13,630 | L7: =I7-F7 -> 85 | M7: =J7-G7 -> 109 | N7: =L7+M7 -> 194 | O7: 1.84%
C8: 2 | D8: 17.09.02 | E8: TALANG EMPAT | F8: 6,752 | G8: 6,436 | H8: =F8+G8 -> 13,188 | I8: 6,919 | J8: 6,597 | K8: =I8+J8 -> 13,516 | L8: =I8-F8 -> 167 | M8: =J8-G8 -> 161 | N8: =L8+M8 -> 328 | O8: 1.96%
C9: 3 | D9: 17.09.03 | E9: PONDOK KELAPA | F9: 16,688 | G9: 16,086 | H9: 32,774 | I9: 16,869 | J9: 16,257 | K9: 33,126 | L9: 181 | M9: 171 | N9: 352 | O9: 2.18%
C10: 4 | D10: 17.09.04 | E10: PEMATANG TIGA | F10: 4,194 | G10: 3,956 | H10: 8,150 | I10: 4,211 | J10: 3,992 | K10: 8,203 | L10: 17 | M10: 36 | N10: 53 | O10: 2.81%
C11: 5 | D11: 17.09.05 | E11: PAGAR JATI | F11: 3,774 | G11: 3,667 | H11: 7,441 | I11: 3,818 | J11: 3,701 | K11: 7,519 | L11: 44 | M11: 34 | N11: =L11+M11 -> 78 | O11: 1.03%
C12: 6 | D12: 17.09.06 | E12: TABA PENANJUNG | F12: 6,451 | G12: 6,023 | H12: 12,474 | I12: 6,467 | J12: 6,077 | K12: 12,544 | L12: 16 | M12: 54 | N12: 70 | O12: 1.36%
C13: 7 | D13: 17.09.07 | E13: MERIGI KELINDANG | F13: 3,972 | G13: 3,749 | H13: 7,721 | I13: 3,993 | J13: 3,767 | K13: 7,760 | L13: 21 | M13: 18 | N13: 39 | O13: 1.83%
C14: 8 | D14: 17.09.08 | E14: MERIGI SAKTI | F14: 3,479 | G14: 3,387 | H14: 6,866 | I14: 3,462 | J14: 3,368 | K14: 6,830 | L14: (17) | M14: (19) | N14: (36) | O14: 1.22%
C15: 9 | D15: 17.09.09 | E15: PONDOK KUBANG | F15: 5,679 | G15: 5,388 | H15: 11,067 | I15: 5,781 | J15: 5,489 | K15: 11,270 | L15: 102 | M15: 101 | N15: 203 | O15: 2.70%
C16: 10 | D16: 17.09.10 | E16: BANG HAJI | F16: 3,749 | G16: 3,462 | H16: 7,211 | I16: 3,751 | J16: 3,489 | K16: 7,240 | L16: 2 | M16: 27 | N16: 29 | O16: 1.68%
C17: 11 | D17: 17.09.11 | E17: SEMIDANG LAGAN | F17: 3,114 | G17: 2,897 | H17: 6,011 | I17: 3,128 | J17: 2,903 | K17: 6,031 | L17: =I17-F17 -> 14 | M17: 6 | N17: 20 | O17: -0.66%
C18: TOTAL | F18: =SUM(F7:F17) -> 64,656 | G18: 61,683 | H18: 126,339 | I18: 65,288 | J18: 62,381 | K18: 127,669 | L18: =SUM(L7:L17) -> 632 | M18: 698 | N18: =SUM(N7:N17) -> 1,330 | O18: 1.82%
